Cogmind - Beta 10.2 *** ADVENTURER MODE // 2021.12.29 @ 13:13:09 Player: Jezoensis Result: Destroyed by as-19923 with Assembled Rifle Performance ------------- Evolutions (0) 0 Regions Visited (2) 400 Robots Destroyed (32) 160 Value Destroyed (562) 562 Prototype IDs (4) 80 Alien Tech Used (0) 0 Bonus (-9) -9 TOTAL SCORE: 1193 Bonus ------- Friendly Fire -9 Cogmind --------- Core Integrity 0/250 Matter 216/300 Energy 125/125 System Corruption 0% Temperature Cool (20) Movement Treading (160) Location -10/Mines Parts ------- > --- POWER (1) -------- Light Ion Engine > --- PROPULSION (2) --- Light Treads Light Treads > --- UTILITY (2) ------ Large Storage Unit Improved Terrain Scanner > --- WEAPON (2) ------- Heavy Assault Rifle Heavy Assault Rifle > --- INVENTORY (10) --- Light Ion Engine Improved Heat Sink Medium Storage Unit Large Storage Unit Improved Terrain Scanner Heavy Assault Rifle Mining Laser Peak State ------------ > --- POWER ------------ Light Ion Engine > --- PROPULSION ------- Light Treads Light Treads > --- UTILITY ---------- Improved Heat Sink Medium Storage Unit > --- WEAPON ----------- Advanced Beam Cannon Assault Rifle > --- INVENTORY -------- Ion Engine Light Treads Improved Terrain Scanner Improved Terrain Scanner EM Pulse Gun EM Pulse Gun Medium Laser Assault Rifle [Rating: 12] Favorites ----------- Power Light Ion Engine Engine Light Ion Engine Propulsion Light Treads Treads Light Treads Utility Improved Terrain Scanner Device Improved Terrain Scanner Storage Medium Storage Unit Weapon Heavy Assault Rifle Energy Gun EM Pulse Gun Energy Cannon Advanced Beam Cannon Ballistic Gun Heavy Assault Rifle Special Weapon Mining Laser Build | -11 -10 -10 ------- Run | Scr Mat Min Slots Evolved . | . . . Power . | . . . Propulsion . | . . . Utility . | . . . Weapon . | . . . Parts Attached 31 | 10 16 5 Power 3 | 1 1 1 Engine 3 | 1 1 1 Core . | . . . Reactor . | . . . Propulsion 4 | 2 . 2 Treads 4 | 2 . 2 Leg . | . . . Wheel . | . . . Hover . | . . . Flight . | . . . Utility 11 | 3 8 . Device 8 | 2 6 . Storage 3 | 1 2 . Processor . | . . . Hackware . | . . . Protection . | . . . Artifact . | . . . Weapon 13 | 4 7 2 Energy Gun 6 | 3 3 . Energy Cannon 2 | . 2 . Ballistic Gun 4 | 1 1 2 Ballistic Cannon . | . . . Launcher . | . . . Special Weapon 1 | . 1 . Impact Weapon . | . . . Slashing Weapon . | . . . Piercing Weapon . | . . . Special Melee Weapon . | . . . Unidentified Prototypes 1 | . 1 . Parts Lost 6 | . 1 5 Power 2 | . 1 1 Propulsion 2 | . . 2 Utility . | . . . Weapon 2 | . . 2 Highest Loss Streak 5 | . 1 5 Average Slot Usage (%) 99 | . 99 96 Engine 13 | . 13 11 Treads 27 | . 28 27 Device 14 | . 14 14 Storage 14 | . 14 14 Energy Gun 6 | . 7 3 Energy Cannon 5 | . 6 . Ballistic Gun 14 | . 12 24 Special Weapon 1 | . 1 . Naked Turns . | . . . Heaviest Build 27 | 12 27 27 Greatest Support 40 | 40 40 40 Greatest Overweight (x) . | . . . Average Overweight (x) . | . . . Largest Inventory Capacity 10 | 6 10 10 Average Capacity 8 | 5 7 10 Most Carried 10 | 4 10 10 Average Carried 6 | 1 7 7 Final Capacity 10 | 6 10 10 Final Carried 10 | 3 10 7 Class Distribution -------------------- 100% | Mutant Dominant Class ---------------- Mutant | -10/Materials Mutant | -10/Mines Resources | -11 -10 -10 ----------- Run | Scr Mat Min Matter Collected 664 | 320 243 101 Remotely . | . . . Salvage Created 1069 | 160 679 230 Parts 56 | 15 32 9 Haulers Intercepted 2 | . 2 . Recyclers Shooed 1 | 1 . . Parts Field Recycled . | . . . Retrieved Matter . | . . . Parts Self-Destructed . | . . . Prevented . | . . . Kills | -11 -10 -10 ------- Run | Scr Mat Min Combat Hostiles Destroyed 19 | . 12 7 Guns 12 | . 5 7 Cannons 6 | . 6 . AOE 1 | . 1 . Classes Destroyed 9 | 2 5 2 Worker 4 | . 1 3 Tunneler 7 | 5 2 . Hauler 2 | . 2 . Recycler 2 | 1 . 1 Watcher 3 | . 3 . Swarmer 4 | . 3 1 Grunt 9 | . 9 . Demolisher 1 | . . 1 Assembled 5 | . . 5 Best Kill Streak 5 | 3 5 5 Combat Bots Only 5 | . 5 3 Max Kills in Single Turn 2 | 1 1 2 Gunslinging . | . . . Exploded 1 | . 1 . Melee . | . . . Uniques/NPCs Destroyed . | . . . Combat | -11 -10 -10 -------- Run | Scr Mat Min Damage Taken 1270 | . 280 990 Core 253 | . 24 229 Absorbed by Shields . | . . . Core Remaining (%) 100 | 100 . . Volleys Fired 86 | 10 46 30 Largest 2 | 2 2 2 Hottest 108 | 70 108 63 Shots Fired 168 | 20 88 60 Gun 126 | 20 46 60 Cannon 38 | . 38 . Launcher . | . . . Special 4 | . 4 . Kinetic 89 | 10 26 53 Thermal 51 | 9 42 . Explosive . | . . . Electromagnetic 28 | 1 20 7 Robot Hit Streak 14 | 6 14 13 Robot Miss Streak 4 | 1 2 4 Penetration Max . | . . . Secondary Targets 2 | . . 2 Max Gunslinging Chain 1 | . . 1 Shots Hit Robots 123 | 14 63 46 Core Hits 53 | 7 26 20 Critical Hits 6 | . 6 . Critical Kills 1 | . 1 . Critical Parts Destroyed 5 | . 5 . Melee Attacks . | . . . Impact . | . . . Slashing . | . . . Piercing . | . . . Sneak Attacks . | . . . Combat Hostiles . | . . . Follow-up Attacks . | . . . Damage Inflicted 2180 | 162 1315 703 Guns 1349 | 162 495 692 Cannons 665 | . 665 . Explosions 148 | . 148 . Melee . | . . . Ramming 18 | . 7 11 Kinetic 966 | 60 287 619 Thermal 902 | 89 813 . Explosive . | . . . Electromagnetic 294 | 13 208 73 Impact . | . . . Slashing . | . . . Piercing . | . . . Highest Corruption . | . . . Average Corruption . | . . . Corruption Purged . | . . . Overload Shots . | . . . Overflow Damage 24 | . 24 . Projectiles 7 | . 7 . Explosions 17 | . 17 . Melee . | . . . Knockbacks . | . . . Impact . | . . . Kinetic . | . . . Secondary . | . . . Self-Inflicted Damage 20 | . 20 . Shots 1 | . 1 . Rammed 2 | . 1 1 Targets Rammed 2 | . 1 1 Kicked . | . . . Crushed . | . . . Highest Temperature 225 | 45 225 25 Average Temperature 47 | 20 56 7 Received Heat Transfer 236 | . 156 80 Siege Activations . | . . . Robots Corrupted . | . . . Combat Hostiles . | . . . Parts Fried 2 | . 2 . Impact Corruptions . | . . . Robots Melted . | . . . Combat Hostiles . | . . . Parts Melted 1 | . 1 . Heat Transferred 1643 | 259 1384 . Parts Sabotaged . | . . . Parts Stolen . | . . . Parts Stripped . | . . . Power Chain Reactions 2 | . 2 . Missiles Intercepted . | . . . Alert | -11 -10 -10 ------- Run | Scr Mat Min Peak Influence 280 | 30 280 55 Initial 16 | . 16 8 Average 113 | 14 145 31 Maximum Alert Level 1 | . 1 . Low Security (%) 69 | 100 58 100 Level 1 30 | . 41 . Level 2 . | . . . Level 3 . | . . . Level 4 . | . . . Level 5 . | . . . High Security . | . . . Max Security . | . . . Squads Dispatched 4 | . 4 . Investigation 4 | . 4 . Extermination . | . . . Reinforcement . | . . . Assault . | . . . Garrison . | . . . Intercept . | . . . Construction Impeded . | . . . Haulers Reinforced . | . . . Stealth | -11 -10 -10 --------- Run | Scr Mat Min Distress Signals 1 | . 1 . Communications Jammed . | . . . Distress Signals . | . . . Times Spotted 30 | . 17 13 Peak Tracking Total 5 | . 3 5 Tactical Retreats . | . . . Traps | -11 -10 -10 ------- Run | Scr Mat Min Traps Triggered 2 | . 2 . Indirectly . | . . . Trap Hack Attempts . | . . . Triggered . | . . . Disarmed . | . . . Reprogrammed . | . . . Reused . | . . . Traps Extracted . | . . . Installed . | . . . Triggered . | . . . Machines | -11 -10 -10 ---------- Run | Scr Mat Min Machines Disabled 2 | . 2 . Max in Single Turn 1 | . 1 . Machines Sabotaged . | . . . Garrisons Compromised . | . . . Overloaded Fab Kills . | . . . Fab Network Shutdowns . | . . . Hacking | -11 -10 -10 --------- Run | Scr Mat Min Machines Accessed 10 | . 10 . Terminals 8 | . 8 . Fabricators . | . . . Repair Stations . | . . . Recycling Units 2 | . 2 . Scanalyzers . | . . . Garrison Access . | . . . Total Hacks 30 | . 30 . Successful 21 | . 21 . Failed 9 | . 9 . Catastrophic . | . . . Database Lockouts . | . . . Manual 24 | . 24 . Terminals 28 | . 28 . Fabricators . | . . . Repair Stations . | . . . Recycling Units 2 | . 2 . Scanalyzers . | . . . Garrison Access . | . . . Terminal Hacks 14 | . 14 . Part Schematic 2 | . 2 . Robot Analysis 5 | . 5 . Prototype ID Bank 2 | . 2 . Branch Access Points 1 | . 1 . Terminal Index 1 | . 1 . Unreport Threat 1 | . 1 . Locate Traps 1 | . 1 . Zone Layout 1 | . 1 . Fabricator Hacks . | . . . Repair Station Hacks . | . . . Recycling Unit Hacks . | . . . Scanalyzer . | . . . Garrison Access Hacks . | . . . Unauthorized Hacks 7 | . 7 . Terminals 5 | . 5 . Track 3 | . 3 . Botnet 2 | . 2 . Fabricators . | . . . Repair Stations . | . . . Recycling Units 2 | . 2 . Tunnel 2 | . 2 . Scanalyzers . | . . . Garrison Access . | . . . Data Cores Recovered . | . . . Used . | . . . Hacking Detections 8 | . 8 . Full Trace Events . | . . . Feedback Events . | . . . Feedback Blocked . | . . . Robot Schematics Acquired . | . . . Robots Built . | . . . Matter . | . . . Time . | . . . Total Robot Build Rating . | . . . Part Schematics Acquired 2 | . 2 . Parts Built . | . . . Matter . | . . . Time . | . . . Total Part Build Rating . | . . . Parts Repaired . | . . . Time . | . . . Parts Recycled . | . . . Recycled Matter . | . . . Retrieved Matter . | . . . Retrieved Components . | . . . Parts Scanalyzed . | . . . Part Schematics Acquired . | . . . Parts Damaged . | . . . Bothacking | -11 -10 -10 ------------ Run | Scr Mat Min Used RIF Installer . | . . . Robots Hacked . | . . . Non-combat . | . . . Combat . | . . . Robot Hacks Applied . | . . . Relay Couplers Released . | . . . Robots Rewired . | . . . Allies Hacked . | . . . Hacks Repelled . | . . . Allies | -11 -10 -10 -------- Run | Scr Mat Min Total Allies . | . . . Largest Group . | . . . Highest-Rated Group . | . . . Highest-Rated Ally . | . . . Total Orders . | . . . Ally Attacks . | . . . Total Damage . | . . . Kills . | . . . Allies Corrupted . | . . . Allies Melted . | . . . Intel | -11 -10 -10 ------- Run | Scr Mat Min Robot Analysis Total 5 | . 5 . Derelict Logs Recovered . | . . . Drone Launches . | . . . Drone Recoveries . | . . . Exploration | -11 -10 -10 ------------- Run | Scr Mat Min Turns Passed 1363 | 134 1000 229 Spaces Moved 658 | 66 511 81 Core 16 | 16 . . Treads 642 | 50 511 81 Legs . | . . . Wheels . | . . . Hover . | . . . Flight . | . . . Fastest Speed 50 | 50 160 160 Average Speed 157 | 133 160 160 Slowest Speed 160 | 160 160 160 Overloaded Moves . | . . . Propulsion Burnouts . | . . . Robots Hopped . | . . . Cave-ins Triggered . | . . . Exploration Rate (%) 39 | 5 92 21 Regions Visited 2 Branch Regions 1 Pre-discovered Areas 2 | . 2 . Known Exits Taken 1 | . 1 . Unknown Exits Taken 1 | 1 . . Scrap Searched . | . . . Spaces Dug 4 | . 4 . Terrain Destroyed 9 | . 9 . Melee . | . . . Projectile 4 | . 4 . AOE 5 | . 5 . Terrain Rammed . | . . . Walls Destroyed . | . . . Machines Disabled . | . . . Actions | -11 -10 -10 --------- Run | Scr Mat Min Total 810 | 89 602 119 Wait 1 | . . 1 Move 656 | 65 510 81 Hop . | . . . Pick Up 21 | 4 16 1 Fast Attach 7 | 4 2 1 Attach 10 | 3 3 4 Detach 1 | . 1 . Swap 14 | 3 11 . Drop 12 | . 12 . Fire 86 | 10 46 30 Melee . | . . . Ram . | . . . Kick . | . . . Crush 2 | . 1 1 Escape Stasis . | . . . Rewire . | . . . Trap . | . . . Miscellaneous . | . . . Route ------- -11/Scrapyard -10/Materials (discovered 4 exits: [*Mat x3] / *Min) -10/Mines (discovered 1 exit: [*Mat]) History --------- Turn | Location | Event 26 | -11/Scrapyard | Discovered new exit (range 15) 135 | -11/Scrapyard | Entered Materials 281 | -10/Materials | Identified exit to Mines 308 | -10/Materials | Build established: Mutant 517 | -10/Materials | Discovered new exit (range 6) 685 | -10/Materials | Discovered new exit (range 13) 1013 | -10/Materials | Discovered new exit (range 12) 1135 | -10/Materials | Entered Mines 1167 | -10/Mines | Assembled infested the area 1172 | -10/Mines | Assisted by a Guerilla fighting off Assembled 1195 | -10/Mines | Core integrity fell below 50% 1225 | -10/Mines | Lost 5 parts (1p2n2w) 1240 | -10/Mines | Discovered new exit (range 14) 1321 | -10/Mines | Core integrity fell below 20% 1364 | -10/Mines | Destroyed by as-19923 with Assembled Rifle Last Messages --------------- 01245_ Acquired 20 matter. 01248_ U-05 Engineer destroyed. 01251_ Acquired Lgt. Ion Engine. 01263_ as-48138 destroyed. 01263_ K-01 Serf destroyed. 01269_ Acquired 15 matter. 01271_ Acquired 3 matter. 01278_ R-06 Scavenger collects Lgt. Assault Rifle. 01283_ R-06 Scavenger collects Flight Unit. 01288_ R-06 Scavenger collects Wheel. 01312_ as-44325 destroyed. 01333_ as-08709 destroyed. 01333_ Switching to secondary target: as-67831. 01337_ R-06 Scavenger collects Welding Torch. 01339_ as-67831 destroyed. 01341_ R-06 Scavenger collects Wheel. 01344_ R-06 Scavenger collects Terrain Scanner. 01345_ Destroyed Asb. Hover Unit. 01351_ as-35795 destroyed. 01354_ Acquired 18 matter. Map ----- +----------------------------------------------------+ | ?????????????????????????????????????????????????? | | ?????????????????????????????????????????????????? | | ?????????????????????????????????????????????????? | | ?????????????????????????????????????????????????? | | ?????????????????????????????????????????????????? | | ?????????????????????????????????????????????????? | | ?????????????????????????????????????????????????? | | ?????????????????????????????????????????????????? | | ?????????????????????????????????????????????????? | | ?????????????????????????????????????????????????? | | ?????????????????????????????????????????????????? | | ???????????????????????#?????????????????????????? | | ????????????????????????????????#????????????????? | | ????????????????##????? ???????????? ????????????? | | ?????????????????%*??????????????????????????????? | | ???????????????### ??#????????????? ???????????? | | ???????????????## ???#?#??????????? ?????? ????? | | ???????????????# =???????????????? ??? ??? ??? | | ???????????????# %%|%???????????????????????????? | | ???????????????# =!???????????????? ??????????? | | ???????????????# !*%??????????????????????#???? | | ???????????????# =a#???????#????????? ?#????? | | ????????????????# ########??????#?????#????? | | ????????????????# ###??#???#??????#??? | | ????????????????# aak ##?##?????#####??? | | ?????????????????# @ ###??##### #???? | | ?????????????????# ### ##?## #####?? | | ???????????#?????# #??# r ###= #### | | ?????????????? $ ?#?# ### % | | ?????????????###### ????# !%! % | | ??????????????????# ?????## ## | % # | | ??????????????????# ??????####### ## ## # | | ??????????????????# ????????????# # # ### # | | ????????????????#?# ????????#??#?# ### # ##### | | ??????????????#??? ???????????#??# ### ## #?? | | ????????????????? ?????#???#???#?## # ## ##?? | | ???????????????? ??? ????????#???## ## ##??? | | ???????????????? ???????????###?#??####### ###???? | | ?????????????????????????????#?#?##??????# #??#??? | | ????????????????????????????#??#??#??????# #?????? | | ?????????????????????????????????????????#=#??##?? | | ???????????????????????????#??????#?#????# #?????? | | ???????????????????????????????#?#???#???# #??#??? | | ?????????????????????????????????????????#=#?????? | | ???????????????????????????????#?????????# #?#???? | | ????????????????????????????????????????## #####?? | | ?????????????????????????????????????????# #?? | | ?????????????????????????????????#???????##### #?? | | ????????????????????????????????????????#??### ### | | ???????????????????????????????????????????# # | +----------------------------------------------------+ Best States ------------- Heat Dissipation 39 Energy Generation 10 Energy Capacity 250 Matter Stores 300 Matter Capacity 300 Sight Range 16 Terrain Scan Range 16 Terrain Scan Density 10 Resistance: KI 20 Resistance: TH 20 Resistance: EX 20 Resistance: EM 20 Resistance: I 20 Resistance: S 20 Resistance: P 20 Evasion (%) 50 Recoil Reduction 2 Offensive Hacking 10 Item Schematics ----------------- Lrg. Storage Unit | -10/Materials | Hacked Hcp. Storage Unit | -10/Materials | Hacked Robot Schematics ------------------ None Fabricated ------------ Nothing Alien Tech Used ----------------- None Achievements -------------- None Challenges ------------ None Game ------ Seed PhasingLinearFlail Manual? 0 Play Time 00:17:43 Cumulative 447.4 hours Start 2021.12.29 @ 12:47:17 End 2021.12.29 @ 13:13:09 Sessions 3 Manual Loads 0 Difficulty Adventurer Special Mode None Game No. 219 Rogue 93 Adventurer 124 Explorer 2 Win Type - Total 38 Types 32/3/1/0/1/0/0/0/1 Lore% 59 Gallery% 84 Achievement% 62 Wizard Run 0 Options --------- ASCII 0 Keyboard 1 Movement Numpad Keybinds 0 Fullscreen 1 Font 36/TerminusFine Map View 76x50 Tactical HUD 1 Map Filters NONE Filters NONE Steam 1 RUN: f899ade6-c6ed-4185-941b-83741b1131ae